Workbook

Sheet Coefficients
D1: Graphs of Cubic Functions
D3: This program lets you investigate the
D4: behavior of cubic functions
D7: based on the values of a, b, c and d.
C10: What is the the value of a (- 3 to 3)? | E10: =G10/10-3 -> 0.1 | F10: 62 | G10: 31
C12: What is the the value of b (- 5 to 5)? | E12: =G12/100-5 -> -0.51 | F12: 62 | G12: 449
C14: What is the the value of c (- 5 to 5)? | E14: =G14/100-5 -> 1.33 | F14: 62 | G14: 633
C16: What is the the value of d (- 5 to 5)? | E16: =G16/100-5 -> 1.05 | F16: 62 | G16: 605 | J16: =" y = "&TEXT(a,"0.0")&"x^3 + ("&TEXT(b,"0.00")& ")x^2 + ("&TEXT(cc,"0.00")&")x + ("&TEXT(d,"0.00")&")" -> y = 0.1x^3 + (-0.51)x^2 + (1.33)x + (1.05)
B23: Click each item below for suggestions and investigations
D24: Item 1
D25: Item 2
D26: Item 3
D27: Item 4
D28: Item 5
A32: Created by: Sheldon P. Gordon
A33: Farmingdale StateCollege
A34: Development of this module was supported by the
A35: NSF's Division of Undergraduate Education
A36: under grants DUE-0310123 and DUE-0442160.

Sheet 4 Points
D1: Graphs of Cubic Functions
D3: This program lets you investigate the
D4: behavior of the cubic function
D7: through four given points.
D8: (x1, y1), (x2, y2), (x3, y3) and (x4, y4)
C11: For the first point (x1, y1):
D12: What is x1 (1 to 5)? | F12: =G12/10-5 -> -2.1 | G12: 29
D14: What is y1 (1 to 5)? | F14: =G14/10-10 -> -0.3 | G14: 97
C16: For the second point (x2, y2):
D17: What is x2 (1 to 5)? | F17: =G17/10-5 -> -1.3 | G17: 37
D19: What is y2 (1 to 5)? | F19: =G19/10-10 -> 1.1 | G19: 111
C21: For the third point (x3, y3):
D22: What is x3 (1 to 5)? | F22: =G22/10-5 -> 0.4 | G22: 54
D24: What is y3 (1 to 5)? | F24: =G24/10-10 -> -0.5 | G24: 95
C26: For the fourth point (x4, y4):
D27: What is x4 (1 to 5)? | F27: =G27/10-5 -> 1.4 | G27: 64
D29: What is y4 (1 to 5)? | F29: =G29/10-10 -> -2.9 | G29: 71
B32: Click each item below for suggestions and investigations
D33: Item 1
D34: Item 2
D35: Item 3

Sheet Sheet3
B2: Coefficients
C4: -4 | D4: =a*C4^3+b*C4^2+cc*C4+d -> -18.83 | E4: 0 | F4: 1
C5: -1 | D5: =a*C5^3+b*C5^2+cc*C5+d -> -0.89
C6: 1 | D6: =a*C6^3+b*C6^2+cc*C6+d -> 1.97
C7: 4 | D7: =a*C7^3+b*C7^2+cc*C7+d -> 4.61
C10: Disc= | D10: =b^2-4*a*cc -> -0.2719
B12: IP = | C12: =-b/3/a -> 1.7 | D12: =a*C12^3+b*C12^2+cc*C12+d -> 2.3284
B15: 4 Points
B17: ='4 Points'!F12 -> -2.1 | C17: ='4 Points'!F14 -> -0.3
B18: ='4 Points'!F17 -> -1.3 | C18: ='4 Points'!F19 -> 1.1
B19: ='4 Points'!F22 -> 0.4 | C19: ='4 Points'!F24 -> -0.5
B20: ='4 Points'!F27 -> 1.4 | C20: ='4 Points'!F29 -> -2.9

Sheet Sheet4
